[Event "GrandPrix_30.05"]
[Site "Chess.com"]
[Date "2020.05.30"]
[Round "8"]
[White "cukus"]
[Black "Andrei_Belozerov"]
[Result "1-0"]
[WhiteElo "2230"]
[BlackElo "2327"]
[TimeControl "600+2"]
[EndTime "11:55:55 PDT"]
[Termination "cukus won by resignation"]

1. e4 {[%clk 0:09:47.2]} 1... c5 {[%clk 0:10:00.5]} 2. Nf3 {[%clk 0:09:48]} 2...
d6 {[%clk 0:10:01]} 3. d4 {[%clk 0:09:48.9]} 3... cxd4 {[%clk 0:10:02.6]} 4.
Nxd4 {[%clk 0:09:50.8]} 4... Nf6 {[%clk 0:10:04.3]} 5. Nc3 {[%clk 0:09:52]} 5...
a6 {[%clk 0:10:05.9]} 6. Be3 {[%clk 0:09:53]} 6... e5 {[%clk 0:10:07.1]} 7. Nb3
{[%clk 0:09:53.9]} 7... Be6 {[%clk 0:10:07]} 8. f3 {[%clk 0:09:55]} 8... h5
{[%clk 0:10:06.4]} 9. Qd2 {[%clk 0:09:52.7]} 9... Nbd7 {[%clk 0:10:06.6]} 10.
Nd5 {[%clk 0:09:53.1]} 10... Bxd5 {[%clk 0:10:06.8]} 11. exd5 {[%clk 0:09:54.1]}
11... g6 {[%clk 0:10:04.4]} 12. Be2 {[%clk 0:09:55]} 12... Bg7 {[%clk
0:09:58.3]} 13. O-O-O {[%clk 0:09:50.1]} 13... Nb6 {[%clk 0:09:42.6]} 14. Qa5
{[%clk 0:09:15.9]} 14... Bh6 {[%clk 0:09:34.9]} 15. Bxh6 {[%clk 0:09:10.9]}
15... Rxh6 {[%clk 0:09:35.2]} 16. f4 {[%clk 0:08:20]} 16... exf4 {[%clk
0:09:21.5]} 17. Rhf1 {[%clk 0:07:59.9]} 17... Nbd7 {[%clk 0:09:12.2]} 18. Qb4
{[%clk 0:07:51.9]} 18... Qb6 {[%clk 0:08:36.9]} 19. Qxf4 {[%clk 0:07:44.3]}
19... Rh8 {[%clk 0:08:33.7]} 20. Kb1 {[%clk 0:06:16.2]} 20... O-O-O {[%clk
0:08:30.4]} 21. Qh4 {[%clk 0:06:00.4]} 21... Rhe8 {[%clk 0:08:19.1]} 22. Bd3
{[%clk 0:05:27.1]} 22... Nxd5 {[%clk 0:07:43.9]} 23. Rxf7 {[%clk 0:04:49.6]}
23... Ne5 {[%clk 0:07:42.3]} 24. Rg7 {[%clk 0:04:49.4]} 24... Ne3 {[%clk
0:07:00.7]} 25. Rc1 {[%clk 0:04:41.1]} 25... Kb8 {[%clk 0:06:50.2]} 26. Qf2
{[%clk 0:04:32.6]} 26... d5 {[%clk 0:06:05]} 27. Re1 {[%clk 0:04:22.4]} 27...
Nxd3 {[%clk 0:05:56.1]} 28. cxd3 {[%clk 0:04:22.7]} 28... Rc8 {[%clk 0:05:22.6]}
29. Qg3+ {[%clk 0:04:05.5]} 29... Ka8 {[%clk 0:05:20.1]} 30. Rxg6 {[%clk
0:04:05.8]} 30... Rc6 {[%clk 0:03:59.4]} 31. Rg8 {[%clk 0:03:30.2]} 31... Rxg8
{[%clk 0:03:54.8]} 32. Qxg8+ {[%clk 0:03:32.1]} 32... Ka7 {[%clk 0:03:56.1]} 33.
Qg5 {[%clk 0:03:07.8]} 33... Nc2 {[%clk 0:03:44.8]} 34. Rc1 {[%clk 0:03:03.3]}
34... Rg6 {[%clk 0:02:54.2]} 35. Qxh5 {[%clk 0:02:51.6]} 35... Nb4 {[%clk
0:02:51.8]} 36. Qe2 {[%clk 0:02:44.6]} 36... Qb5 {[%clk 0:02:38.1]} 37. Rd1
{[%clk 0:02:23.8]} 37... Qa4 {[%clk 0:02:33.9]} 38. Nc1 {[%clk 0:02:21.9]} 38...
Rxg2 {[%clk 0:02:24.2]} 39. Qxg2 {[%clk 0:01:58.5]} 39... Qxd1 {[%clk
0:02:22.5]} 40. Qf2+ {[%clk 0:01:59.3]} 1-0

[Event "GrandPrix_30.05"]
[Site "Chess.com"]
[Date "2020.05.30"]
[Round "8"]
[White "PavelShkapenko"]
[Black "Mikhail_Golubev"]
[Result "1/2-1/2"]
[WhiteElo "2385"]
[BlackElo "2166"]
[TimeControl "600+2"]
[EndTime "11:55:57 PDT"]
[Termination "Game drawn by agreement"]

1. e4 {[%clk 0:10:00.8]} 1... c5 {[%clk 0:09:43.3]} 2. c3 {[%clk 0:09:59.5]}
2... d6 {[%clk 0:09:38.7]} 3. d4 {[%clk 0:10:00.2]} 3... Nf6 {[%clk 0:09:38.9]}
4. Bd3 {[%clk 0:10:01.2]} 4... Nc6 {[%clk 0:09:36.4]} 5. Nf3 {[%clk 0:10:01.6]}
5... Bg4 {[%clk 0:09:27.7]} 6. d5 {[%clk 0:10:02.2]} 6... Bxf3 {[%clk
0:09:08.5]} 7. Qxf3 {[%clk 0:10:02.7]} 7... Ne5 {[%clk 0:09:04.8]} 8. Bb5+
{[%clk 0:10:03.4]} 8... Nfd7 {[%clk 0:08:49.9]} 9. Qe2 {[%clk 0:09:53.8]} 9...
a6 {[%clk 0:08:47.9]} 10. Ba4 {[%clk 0:09:54.9]} 10... c4 {[%clk 0:08:32]} 11.
O-O {[%clk 0:09:55.5]} 11... b5 {[%clk 0:08:32]} 12. Bc2 {[%clk 0:09:55.9]}
12... Nc5 {[%clk 0:08:32.1]} 13. Be3 {[%clk 0:09:50.4]} 13... Qc7 {[%clk
0:07:57.1]} 14. f4 {[%clk 0:09:29.7]} 14... Ned3 {[%clk 0:07:53.6]} 15. b4
{[%clk 0:09:00]} 15... Nxe4 {[%clk 0:07:47.5]} 16. Bxd3 {[%clk 0:09:00.8]} 16...
cxd3 {[%clk 0:07:46.6]} 17. Qxd3 {[%clk 0:09:02.4]} 17... Qc4 {[%clk 0:07:30]}
18. Qxc4 {[%clk 0:09:03.4]} 18... bxc4 {[%clk 0:07:30.7]} 19. Bd4 {[%clk
0:09:01.1]} 19... e6 {[%clk 0:06:36.8]} 20. Na3 {[%clk 0:08:12.1]} 20... exd5
{[%clk 0:06:29.7]} 21. Nc2 {[%clk 0:08:13.1]} 21... Kd7 {[%clk 0:06:05.8]} 22.
Ne3 {[%clk 0:08:11.5]} 22... Kc6 {[%clk 0:06:04.7]} 23. a4 {[%clk 0:07:53.6]}
23... Be7 {[%clk 0:05:44.6]} 24. Rfd1 {[%clk 0:07:26.1]} 24... Bf6 {[%clk
0:04:43.7]} 25. Nxd5 {[%clk 0:07:24.5]} 25... Kxd5 {[%clk 0:04:25.3]} 26. Bxf6+
{[%clk 0:07:24.8]} 26... Kc6 {[%clk 0:04:16.3]} 27. Bxg7 {[%clk 0:07:24.3]}
27... Rhg8 {[%clk 0:04:15.8]} 28. Bd4 {[%clk 0:07:25.7]} 28... f5 {[%clk
0:03:43.5]} 29. Rdb1 {[%clk 0:07:12.1]} 29... Nd2 {[%clk 0:03:25.7]} 30. Rd1
{[%clk 0:06:34.9]} 30... Ne4 {[%clk 0:03:26]} 31. Ra2 {[%clk 0:04:41.7]} 31...
Rab8 {[%clk 0:02:38.5]} 32. Rb1 {[%clk 0:04:21.8]} 32... Rg4 {[%clk 0:01:37.6]}
33. Rf1 {[%clk 0:03:01.8]} 33... h5 {[%clk 0:01:27.9]} 1/2-1/2

[Event "GrandPrix_30.05"]
[Site "Chess.com"]
[Date "2020.05.30"]
[Round "8"]
[White "PeshkaTheGreat"]
[Black "Jan1401"]
[Result "1/2-1/2"]
[WhiteElo "2143"]
[BlackElo "2215"]
[TimeControl "600+2"]
[EndTime "11:55:59 PDT"]
[Termination "Game drawn by agreement"]

1. e4 {[%clk 0:10:01.9]} 1... e6 {[%clk 0:10:01.1]} 2. d4 {[%clk 0:09:58]} 2...
d5 {[%clk 0:10:02.5]} 3. Nc3 {[%clk 0:09:58.2]} 3... Bb4 {[%clk 0:10:03.2]} 4.
a3 {[%clk 0:09:58.6]} 4... Bxc3+ {[%clk 0:10:02.7]} 5. bxc3 {[%clk 0:10:00.5]}
5... dxe4 {[%clk 0:09:59.5]} 6. Qg4 {[%clk 0:10:00.8]} 6... Nf6 {[%clk
0:10:00.4]} 7. Qxg7 {[%clk 0:10:02]} 7... Rg8 {[%clk 0:10:01.4]} 8. Qh6 {[%clk
0:10:03.6]} 8... c5 {[%clk 0:09:46.5]} 9. Ne2 {[%clk 0:10:00.4]} 9... Bd7 {[%clk
0:09:35.8]} 10. Bg5 {[%clk 0:08:35]} 10... Ng4 {[%clk 0:09:24.4]} 11. Bxd8
{[%clk 0:08:29.4]} 11... Nxh6 {[%clk 0:09:25.2]} 12. Bc7 {[%clk 0:08:22.7]}
12... Bc6 {[%clk 0:09:05.4]} 13. Ng3 {[%clk 0:08:13.6]} 13... Nd7 {[%clk
0:08:36.9]} 14. h3 {[%clk 0:07:56.4]} 14... f6 {[%clk 0:08:17.8]} 15. Bc4 {[%clk
0:07:45.2]} 15... Ke7 {[%clk 0:08:17.1]} 16. O-O {[%clk 0:07:39.5]} 16... Nf7
{[%clk 0:07:56.4]} 17. Bf4 {[%clk 0:07:19.6]} 17... Nb6 {[%clk 0:07:35.9]} 18.
Be2 {[%clk 0:06:55.1]} 18... Nd5 {[%clk 0:07:29.4]} 19. Bd2 {[%clk 0:06:53.2]}
19... e3 {[%clk 0:07:07.5]} 20. Be1 {[%clk 0:06:52.6]} 20... exf2+ {[%clk
0:07:08.5]} 21. Bxf2 {[%clk 0:06:54.5]} 21... Nf4 {[%clk 0:07:07.1]} 22. d5
{[%clk 0:06:23.2]} 22... Bxd5 {[%clk 0:07:01.5]} 23. Bxc5+ {[%clk 0:06:24.2]}
23... Kd7 {[%clk 0:06:27.4]} 24. Bb5+ {[%clk 0:05:42.7]} 24... Kc7 {[%clk
0:06:12.2]} 25. Rxf4 {[%clk 0:05:40.1]} 25... Rxg3 {[%clk 0:06:11.5]} 26. Rxf6
{[%clk 0:05:40.6]} 26... Rxg2+ {[%clk 0:06:01]} 27. Kf1 {[%clk 0:05:41.8]} 27...
Nd6 {[%clk 0:05:53.6]} 28. c4 {[%clk 0:05:05.5]} 28... Be4 {[%clk 0:03:58]} 29.
Re1 {[%clk 0:05:01.5]} 29... Rg6 {[%clk 0:03:04.3]} 30. Rxg6 {[%clk 0:04:26.6]}
30... Bxg6 {[%clk 0:03:03.9]} 31. Rxe6 {[%clk 0:04:27.7]} 31... Nxb5 {[%clk
0:02:51.1]} 32. cxb5 {[%clk 0:04:29.6]} 32... b6 {[%clk 0:02:40.3]} 33. Re7+
{[%clk 0:04:12.1]} 33... Kd8 {[%clk 0:02:39.4]} 34. Bb4 {[%clk 0:04:08.1]} 34...
Bxc2 {[%clk 0:02:35.3]} 35. Rg7 {[%clk 0:04:02.5]} 35... Bd3+ {[%clk 0:02:28.6]}
36. Kf2 {[%clk 0:04:00.4]} 36... Bxb5 {[%clk 0:02:22.3]} 37. Rxh7 {[%clk
0:03:57.6]} 37... a5 {[%clk 0:02:23.1]} 38. Bd2 {[%clk 0:03:51.4]} 38... Rc8
{[%clk 0:02:18.7]} 39. Be3 {[%clk 0:03:31.1]} 39... Rc6 {[%clk 0:02:09]} 40. Rb7
{[%clk 0:03:27.3]} 40... Kc8 {[%clk 0:02:03.8]} 41. Rxb6 {[%clk 0:03:27.2]}
41... Rxb6 {[%clk 0:02:03.2]} 42. Bxb6 {[%clk 0:03:29.1]} 42... a4 {[%clk
0:02:01]} 43. h4 {[%clk 0:03:29.3]} 43... Kb7 {[%clk 0:02:01.8]} 44. Bd4 {[%clk
0:03:28.5]} 44... Kc6 {[%clk 0:02:02.8]} 45. Ke3 {[%clk 0:03:23.7]} 45... Bc4
{[%clk 0:02:03.4]} 46. h5 {[%clk 0:03:23]} 46... Bg8 {[%clk 0:02:02.2]} 47. Kf4
{[%clk 0:03:14.8]} 47... Kd5 {[%clk 0:02:01.4]} 48. Bg7 {[%clk 0:03:11.8]} 48...
Bh7 {[%clk 0:02:02.4]} 49. Kg5 {[%clk 0:03:09.4]} 49... Bc2 {[%clk 0:02:02.9]}
50. h6 {[%clk 0:03:09.4]} 50... Ke6 {[%clk 0:02:01]} 51. Bc3 {[%clk 0:03:10.1]}
51... Kf7 {[%clk 0:02:00.4]} 52. Kf4 {[%clk 0:03:11.2]} 52... Kg8 {[%clk
0:01:59.9]} 53. Ke5 {[%clk 0:03:11.9]} 53... Kh7 {[%clk 0:02:00.8]} 54. Bd2
{[%clk 0:03:12.5]} 54... Bb3 {[%clk 0:02:01.8]} 55. Kd6 {[%clk 0:03:13.1]} 55...
Bd1 {[%clk 0:02:02.5]} 56. Kc5 {[%clk 0:03:15]} 56... Bb3 {[%clk 0:02:03.3]} 57.
Kb4 {[%clk 0:03:16.5]} 57... Bd1 {[%clk 0:02:04.1]} 58. Kc3 {[%clk 0:03:17.5]}
58... Bb3 {[%clk 0:02:05.1]} 59. Bg5 {[%clk 0:03:18.2]} 59... Kg6 {[%clk
0:02:06.1]} 60. Bf4 {[%clk 0:03:19]} 60... Kh7 {[%clk 0:02:07.4]} 61. Kd2 {[%clk
0:03:20.2]} 61... Kg6 {[%clk 0:02:08.4]} 1/2-1/2

[Event "GrandPrix_30.05"]
[Site "Chess.com"]
[Date "2020.05.30"]
[Round "8"]
[White "Karacsonyi_Gellert"]
[Black "TheEternalPatzer"]
[Result "1-0"]
[WhiteElo "2193"]
[BlackElo "2033"]
[TimeControl "600+2"]
[EndTime "11:56:08 PDT"]
[Termination "Karacsonyi_Gellert won by resignation"]

1. e4 {[%clk 0:10:01.9]} 1... Nf6 {[%clk 0:09:59.9]} 2. e5 {[%clk 0:10:00.8]}
2... Nd5 {[%clk 0:10:00.4]} 3. d4 {[%clk 0:10:01]} 3... d6 {[%clk 0:10:01.4]} 4.
c4 {[%clk 0:10:01.4]} 4... Nb6 {[%clk 0:10:02]} 5. exd6 {[%clk 0:10:00.2]} 5...
exd6 {[%clk 0:10:02.5]} 6. Nc3 {[%clk 0:10:02.1]} 6... Nc6 {[%clk 0:10:03.3]} 7.
d5 {[%clk 0:09:41.7]} 7... Ne5 {[%clk 0:10:00.6]} 8. f4 {[%clk 0:09:15.3]} 8...
Ned7 {[%clk 0:09:58.6]} 9. Nf3 {[%clk 0:09:09.3]} 9... Be7 {[%clk 0:09:58.6]}
10. Bd3 {[%clk 0:09:09.3]} 10... Nf6 {[%clk 0:09:58.4]} 11. O-O {[%clk
0:09:08.3]} 11... O-O {[%clk 0:09:58.7]} 12. Be3 {[%clk 0:08:36.9]} 12... Ng4
{[%clk 0:09:33.7]} 13. Bd4 {[%clk 0:08:36.1]} 13... Bf6 {[%clk 0:09:33.2]} 14.
Bxf6 {[%clk 0:08:35.5]} 14... Nxf6 {[%clk 0:09:00.2]} 15. Qd2 {[%clk 0:08:32.4]}
15... Nbd7 {[%clk 0:08:38.7]} 16. b4 {[%clk 0:08:28.9]} 16... a5 {[%clk
0:08:36.1]} 17. a3 {[%clk 0:08:29]} 17... Re8 {[%clk 0:08:33.7]} 18. Rfe1 {[%clk
0:08:25.1]} 18... Rxe1+ {[%clk 0:08:31.3]} 19. Rxe1 {[%clk 0:08:27]} 19... axb4
{[%clk 0:08:31]} 20. axb4 {[%clk 0:08:27.4]} 20... Nf8 {[%clk 0:08:25.5]} 21.
Nd4 {[%clk 0:08:20.3]} 21... Bd7 {[%clk 0:08:22]} 22. g3 {[%clk 0:07:48.6]}
22... Qb8 {[%clk 0:08:19.8]} 23. Kg2 {[%clk 0:07:29.3]} 23... Qa7 {[%clk
0:08:14.7]} 24. Ndb5 {[%clk 0:07:30.3]} 24... Qb6 {[%clk 0:08:12.8]} 25. Qe3
{[%clk 0:06:51.2]} 25... Qxe3 {[%clk 0:08:07.9]} 26. Rxe3 {[%clk 0:06:53.1]}
26... Ne8 {[%clk 0:07:20]} 27. h3 {[%clk 0:06:43.6]} 27... c6 {[%clk 0:07:11]}
28. Nd4 {[%clk 0:06:25.4]} 28... Nf6 {[%clk 0:06:55.1]} 29. dxc6 {[%clk
0:06:18.4]} 29... bxc6 {[%clk 0:06:54.4]} 30. Ne4 {[%clk 0:06:16.1]} 30... Nxe4
{[%clk 0:05:07.6]} 31. Bxe4 {[%clk 0:06:18]} 31... Ra2+ {[%clk 0:04:13.9]} 32.
Kf3 {[%clk 0:05:42.1]} 32... Bxh3 {[%clk 0:04:08.1]} 33. Bxc6 {[%clk 0:04:58.8]}
33... h5 {[%clk 0:04:05.3]} 34. Ne2 {[%clk 0:04:37.8]} 34... Ne6 {[%clk
0:03:53.5]} 35. Kf2 {[%clk 0:04:02.1]} 35... Bg4 {[%clk 0:03:28.3]} 36. Bf3
{[%clk 0:04:01.4]} 36... Nd4 {[%clk 0:02:59.6]} 37. Bxg4 {[%clk 0:03:51.2]}
37... hxg4 {[%clk 0:03:01.5]} 38. Re4 {[%clk 0:03:39.1]} 38... Nc2 {[%clk
0:02:53.1]} 39. c5 {[%clk 0:03:31.7]} 39... d5 {[%clk 0:02:22.7]} 40. Re8+
{[%clk 0:03:25]} 40... Kh7 {[%clk 0:02:22.9]} 41. c6 {[%clk 0:03:26.9]} 41...
Nd4 {[%clk 0:00:47.6]} 42. c7 {[%clk 0:03:15.1]} 42... Nxe2 {[%clk 0:00:47.9]}
43. Rxe2 {[%clk 0:03:15.6]} 1-0

[Event "GrandPrix_30.05"]
[Site "Chess.com"]
[Date "2020.05.30"]
[Round "8"]
[White "Nuvas"]
[Black "Kezin_Roman"]
[Result "0-1"]
[WhiteElo "2255"]
[BlackElo "2453"]
[TimeControl "600+2"]
[EndTime "11:56:09 PDT"]
[Termination "Kezin_Roman won by resignation"]

1. d4 {[%clk 0:10:01.9]} 1... d5 {[%clk 0:09:58.7]} 2. c4 {[%clk 0:10:02.1]}
2... e6 {[%clk 0:10:00]} 3. Nc3 {[%clk 0:10:03.1]} 3... c6 {[%clk 0:10:00.8]} 4.
Nf3 {[%clk 0:09:25.1]} 4... Nf6 {[%clk 0:10:00.7]} 5. Bg5 {[%clk 0:09:23.6]}
5... dxc4 {[%clk 0:10:01.5]} 6. e4 {[%clk 0:09:19.8]} 6... b5 {[%clk 0:10:02.4]}
7. e5 {[%clk 0:09:21]} 7... h6 {[%clk 0:10:03.4]} 8. Bh4 {[%clk 0:09:22.5]} 8...
g5 {[%clk 0:10:04.6]} 9. Bg3 {[%clk 0:09:24.2]} 9... Nh5 {[%clk 0:10:04.1]} 10.
Be2 {[%clk 0:09:17.7]} 10... Bb7 {[%clk 0:09:50.5]} 11. O-O {[%clk 0:09:16.4]}
11... Bg7 {[%clk 0:09:15.5]} 12. a4 {[%clk 0:08:47.1]} 12... a6 {[%clk
0:09:11.9]} 13. Ne4 {[%clk 0:08:47.9]} 13... O-O {[%clk 0:09:12.3]} 14. Qc2
{[%clk 0:06:29.8]} 14... Nxg3 {[%clk 0:08:56.7]} 15. hxg3 {[%clk 0:05:24]} 15...
g4 {[%clk 0:08:56.1]} 16. Nh2 {[%clk 0:05:25.3]} 16... h5 {[%clk 0:07:25.4]} 17.
Rad1 {[%clk 0:05:25.3]} 17... Nd7 {[%clk 0:07:19.1]} 18. f3 {[%clk 0:05:19.9]}
18... c5 {[%clk 0:05:55.1]} 19. dxc5 {[%clk 0:03:30.6]} 19... Qc7 {[%clk
0:03:54.2]} 20. fxg4 {[%clk 0:03:30]} 20... Bxe4 {[%clk 0:03:37.8]} 21. Qxe4
{[%clk 0:03:30.8]} 21... Nxc5 {[%clk 0:03:22.4]} 22. Qf3 {[%clk 0:03:23]} 22...
Qxe5 {[%clk 0:03:23.1]} 23. gxh5 {[%clk 0:03:12.9]} 23... f5 {[%clk 0:03:21.9]}
24. g4 {[%clk 0:02:55.6]} 24... Rae8 {[%clk 0:03:12.8]} 25. g5 {[%clk
0:02:08.7]} 25... Ne4 {[%clk 0:03:13.4]} 26. h6 {[%clk 0:02:00.8]} 26... Qc5+
{[%clk 0:03:00.4]} 27. Kh1 {[%clk 0:01:22.1]} 27... Be5 {[%clk 0:03:01.6]} 28.
Rd7 {[%clk 0:01:06.2]} 28... Ng3+ {[%clk 0:02:47.3]} 29. Qxg3 {[%clk 0:01:07.2]}
29... Bxg3 {[%clk 0:02:49.2]} 30. Rg7+ {[%clk 0:00:56]} 30... Kh8 {[%clk
0:02:49.4]} 31. g6 {[%clk 0:00:57.6]} 31... Re7 {[%clk 0:02:25.9]} 32. Rxe7
{[%clk 0:00:44]} 32... Qxe7 {[%clk 0:02:27.8]} 0-1

[Event "GrandPrix_30.05"]
[Site "Chess.com"]
[Date "2020.05.30"]
[Round "8"]
[White "Paulz64"]
[Black "DariaVoit"]
[Result "0-1"]
[WhiteElo "2213"]
[BlackElo "2385"]
[TimeControl "600+2"]
[EndTime "11:56:10 PDT"]
[Termination "DariaVoit won on time"]

1. d4 {[%clk 0:10:01.9]} 1... Nf6 {[%clk 0:09:53.2]} 2. c4 {[%clk 0:10:02.2]}
2... e6 {[%clk 0:09:53.9]} 3. Nf3 {[%clk 0:10:03]} 3... b6 {[%clk 0:09:53.8]} 4.
g3 {[%clk 0:10:03.4]} 4... Bb7 {[%clk 0:09:54.9]} 5. Bg2 {[%clk 0:10:04]} 5...
Be7 {[%clk 0:09:56.4]} 6. O-O {[%clk 0:10:04.9]} 6... O-O {[%clk 0:09:57.3]} 7.
d5 {[%clk 0:10:06.1]} 7... exd5 {[%clk 0:09:58.1]} 8. Nh4 {[%clk 0:10:06.2]}
8... c6 {[%clk 0:09:59.6]} 9. cxd5 {[%clk 0:10:06.3]} 9... Nxd5 {[%clk
0:10:01.5]} 10. Nf5 {[%clk 0:10:05.9]} 10... Nc7 {[%clk 0:10:02.9]} 11. e4
{[%clk 0:10:06.6]} 11... d5 {[%clk 0:10:02.7]} 12. Nc3 {[%clk 0:10:04.1]} 12...
Bf6 {[%clk 0:09:32.4]} 13. Re1 {[%clk 0:08:04.5]} 13... d4 {[%clk 0:08:18.5]}
14. e5 {[%clk 0:07:28.7]} 14... dxc3 {[%clk 0:08:05.6]} 15. exf6 {[%clk
0:06:23.9]} 15... Qxf6 {[%clk 0:06:26.1]} 16. Qc2 {[%clk 0:05:42.9]} 16... Re8
{[%clk 0:04:55]} 17. Rxe8+ {[%clk 0:04:18.9]} 17... Nxe8 {[%clk 0:04:56.9]} 18.
bxc3 {[%clk 0:04:19.4]} 18... Nd7 {[%clk 0:04:48]} 19. Bb2 {[%clk 0:03:43.7]}
19... Nd6 {[%clk 0:04:44.5]} 20. Nxd6 {[%clk 0:02:53.4]} 20... Qxd6 {[%clk
0:04:46.4]} 21. Rd1 {[%clk 0:02:52.4]} 21... Qc7 {[%clk 0:04:45.3]} 22. c4
{[%clk 0:02:11.4]} 22... c5 {[%clk 0:04:36.5]} 23. Qf5 {[%clk 0:01:56]} 23...
Nf8 {[%clk 0:03:41.4]} 24. Be5 {[%clk 0:01:45.6]} 24... Qe7 {[%clk 0:03:41.6]}
25. Qg4 {[%clk 0:00:14.4]} 25... Qxe5 {[%clk 0:02:32]} 26. Bxb7 {[%clk 0:00:14]}
26... Re8 {[%clk 0:02:32.8]} 0-1

[Event "GrandPrix_30.05"]
[Site "Chess.com"]
[Date "2020.05.30"]
[Round "8"]
[White "Jaka_Brilej"]
[Black "Nikame"]
[Result "1-0"]
[WhiteElo "2146"]
[BlackElo "2178"]
[TimeControl "600+2"]
[EndTime "11:56:11 PDT"]
[Termination "Jaka_Brilej won by resignation"]

1. e4 {[%clk 0:10:01.9]} 1... c5 {[%clk 0:09:58.3]} 2. Nf3 {[%clk 0:09:58.2]}
2... Nc6 {[%clk 0:09:59.2]} 3. d4 {[%clk 0:09:58.9]} 3... cxd4 {[%clk
0:09:59.2]} 4. Nxd4 {[%clk 0:10:00.5]} 4... Nf6 {[%clk 0:09:58.4]} 5. Nc3 {[%clk
0:10:00.9]} 5... d6 {[%clk 0:09:59.1]} 6. f3 {[%clk 0:10:01.5]} 6... e6 {[%clk
0:09:50.7]} 7. Be3 {[%clk 0:10:01.4]} 7... Be7 {[%clk 0:09:50.8]} 8. Qd2 {[%clk
0:10:02.8]} 8... a6 {[%clk 0:09:50.6]} 9. g4 {[%clk 0:10:03.2]} 9... Nd7 {[%clk
0:09:49.6]} 10. O-O-O {[%clk 0:10:03.2]} 10... Qc7 {[%clk 0:09:47.4]} 11. h4
{[%clk 0:10:00.1]} 11... b5 {[%clk 0:09:47.9]} 12. Nxc6 {[%clk 0:10:00.4]} 12...
Qxc6 {[%clk 0:09:49]} 13. Kb1 {[%clk 0:09:56.9]} 13... Ne5 {[%clk 0:09:42]} 14.
Qf2 {[%clk 0:09:23.2]} 14... Bb7 {[%clk 0:09:38.4]} 15. Ne2 {[%clk 0:09:19.7]}
15... Rc8 {[%clk 0:09:14.4]} 16. Nd4 {[%clk 0:09:18.1]} 16... Qc7 {[%clk
0:09:15.3]} 17. g5 {[%clk 0:08:50.8]} 17... d5 {[%clk 0:09:11.3]} 18. exd5
{[%clk 0:07:41.2]} 18... Bxd5 {[%clk 0:09:11.2]} 19. Be2 {[%clk 0:07:18.5]}
19... Nc4 {[%clk 0:09:06.5]} 20. Bxc4 {[%clk 0:07:18.2]} 20... Qxc4 {[%clk
0:09:04.1]} 21. Nb3 {[%clk 0:07:12.4]} 21... a5 {[%clk 0:08:56.7]} 22. Bd4
{[%clk 0:06:44.8]} 22... a4 {[%clk 0:08:40]} 23. Nc1 {[%clk 0:06:45.2]} 23...
O-O {[%clk 0:08:32.9]} 24. Rhg1 {[%clk 0:06:35.9]} 24... Rfd8 {[%clk 0:08:23.9]}
25. Bb6 {[%clk 0:05:09.9]} 25... Rd6 {[%clk 0:07:58.4]} 26. Be3 {[%clk
0:04:19.9]} 26... Rdc6 {[%clk 0:07:39.4]} 27. Rd2 {[%clk 0:04:18.7]} 27... a3
{[%clk 0:07:38.5]} 28. b3 {[%clk 0:04:04.2]} 28... Qc3 {[%clk 0:07:30.3]} 29.
Bd4 {[%clk 0:04:04.8]} 29... Qa5 {[%clk 0:07:27.2]} 30. Nd3 {[%clk 0:03:50.1]}
30... Bd6 {[%clk 0:06:20.8]} 31. h5 {[%clk 0:03:28.5]} 31... Bxf3 {[%clk
0:05:58.9]} 32. g6 {[%clk 0:03:22.8]} 32... f6 {[%clk 0:05:24.8]} 33. gxh7+
{[%clk 0:03:02.5]} 33... Kf7 {[%clk 0:05:23.8]} 34. h6 {[%clk 0:02:51.4]} 34...
g5 {[%clk 0:04:34.1]} 35. Qxf3 {[%clk 0:02:35.4]} 35... e5 {[%clk 0:04:30.3]}
36. Rf2 {[%clk 0:02:21.2]} 36... Bb8 {[%clk 0:03:45.6]} 37. Nxe5+ {[%clk
0:02:03.3]} 37... Bxe5 {[%clk 0:03:45.2]} 38. Bxe5 {[%clk 0:02:04.3]} 38... Qb6
{[%clk 0:03:39.5]} 39. Qd5+ {[%clk 0:01:29.2]} 39... Ke7 {[%clk 0:03:29.2]} 40.
Bd4 {[%clk 0:01:06.7]} 40... Rd6 {[%clk 0:02:50.3]} 41. Re1+ {[%clk 0:00:55.4]}
41... Kd7 {[%clk 0:02:48.6]} 42. Qf7+ {[%clk 0:00:54.8]} 1-0

[Event "GrandPrix_30.05"]
[Site "Chess.com"]
[Date "2020.05.30"]
[Round "8"]
[White "Sunerorlater"]
[Black "WoodlandMagic"]
[Result "1-0"]
[WhiteElo "2272"]
[BlackElo "2117"]
[TimeControl "600+2"]
[EndTime "11:56:20 PDT"]
[Termination "Sunerorlater won by resignation"]

1. d4 {[%clk 0:10:01.8]} 1... d5 {[%clk 0:10:00.4]} 2. c4 {[%clk 0:10:02.5]}
2... c6 {[%clk 0:10:01.6]} 3. Nf3 {[%clk 0:10:02.8]} 3... Nf6 {[%clk 0:10:02.5]}
4. Nbd2 {[%clk 0:10:02.3]} 4... Bf5 {[%clk 0:09:56.9]} 5. Nh4 {[%clk 0:09:59.7]}
5... Be4 {[%clk 0:09:53.1]} 6. e3 {[%clk 0:09:56.8]} 6... e6 {[%clk 0:09:47.4]}
7. a3 {[%clk 0:09:54.1]} 7... Nbd7 {[%clk 0:09:36.9]} 8. Be2 {[%clk 0:09:40.7]}
8... h6 {[%clk 0:09:21.9]} 9. Nxe4 {[%clk 0:09:37.3]} 9... dxe4 {[%clk
0:09:21.9]} 10. g3 {[%clk 0:09:36.4]} 10... Bd6 {[%clk 0:08:45.8]} 11. Bd2
{[%clk 0:09:11.4]} 11... O-O {[%clk 0:08:21.4]} 12. Bc3 {[%clk 0:09:03.8]} 12...
Rc8 {[%clk 0:08:05.4]} 13. O-O {[%clk 0:09:01.4]} 13... Qe7 {[%clk 0:07:42.4]}
14. Qc2 {[%clk 0:08:54.4]} 14... c5 {[%clk 0:06:48.1]} 15. Rad1 {[%clk
0:08:51.5]} 15... Rfd8 {[%clk 0:06:36.4]} 16. Rfe1 {[%clk 0:08:19.4]} 16... Bb8
{[%clk 0:06:10.3]} 17. Bf1 {[%clk 0:08:07.8]} 17... a6 {[%clk 0:04:48.2]} 18. a4
{[%clk 0:07:54.3]} 18... Bd6 {[%clk 0:04:27.8]} 19. Qb3 {[%clk 0:07:53.7]} 19...
Nb8 {[%clk 0:04:15]} 20. d5 {[%clk 0:06:54.4]} 20... g6 {[%clk 0:03:03.5]} 21.
Bxf6 {[%clk 0:05:21.4]} 21... Qxf6 {[%clk 0:03:03.5]} 22. Qxb7 {[%clk 0:05:23]}
22... exd5 {[%clk 0:02:23.5]} 23. Rxd5 {[%clk 0:05:20.9]} 23... Nc6 {[%clk
0:02:04.7]} 24. Red1 {[%clk 0:05:13.6]} 24... Ne7 {[%clk 0:01:43.8]} 25. R5d2
{[%clk 0:04:58.3]} 25... Qe5 {[%clk 0:01:10.5]} 26. Bg2 {[%clk 0:04:09.8]} 26...
g5 {[%clk 0:01:02.7]} 27. Qxe4 {[%clk 0:04:06.5]} 27... Qxe4 {[%clk 0:00:55.1]}
28. Bxe4 {[%clk 0:04:06.2]} 28... Bc7 {[%clk 0:00:53.4]} 29. Nf3 {[%clk
0:04:00]} 29... Rxd2 {[%clk 0:00:52.7]} 30. Rxd2 {[%clk 0:03:58.8]} 30... Rd8
{[%clk 0:00:54]} 31. Rxd8+ {[%clk 0:03:55.3]} 31... Bxd8 {[%clk 0:00:55.9]} 32.
Ne5 {[%clk 0:03:51.2]} 32... Bc7 {[%clk 0:00:40.2]} 33. Nd7 {[%clk 0:03:49.6]}
33... Bd6 {[%clk 0:00:39.8]} 34. a5 {[%clk 0:03:35.1]} 34... Kg7 {[%clk
0:00:09.8]} 35. Bb7 {[%clk 0:03:31.4]} 35... Bc7 {[%clk 0:00:10.8]} 36. Nxc5
{[%clk 0:03:27.8]} 36... Bxa5 {[%clk 0:00:10.6]} 37. Nxa6 {[%clk 0:03:27.4]} 1-0